bitfinex-derivatives/quotes_SOLF0:USTF0_20250904
["timestamp","ask_amount","ask_price","bid_price","bid_amount"]
[1757012044031,128.75535517,203.25,203.14,7.94]
[1757012045328,7.05535517,203.25,203.14,7.94]
[1757012045534,121.7,203.24,203.14,7.94]
[1757012046134,4.0,203.23,203.14,7.94]
[1757012050338,4.0,203.26,203.16,3.05535517]
[1757012050542,4.0,203.26,203.17,7.94]
[1757012053645,4.0,203.24,203.17,7.94]
[1757012056445,3.05535517,203.22,203.17,7.94]
[1757012056640,4.85672083,203.27,203.16,3.05535517]
[1757012056845,125.66,203.27,203.17,7.94]
[1757012057743,4.0,203.25,203.17,7.94]
[1757012058244,3.05535517,203.23,203.17,7.94]
[1757012059046,3.97,203.22,203.17,7.94]
[1757012059245,3.97,203.21,203.17,7.94]
[1757012059447,3.97,203.21,203.12,7.37]
[1757012059647,3.05535517,203.2,203.12,7.37]
[1757012060348,3.97,203.16,203.12,7.37]
[1757012060842,121.64,203.19,203.1,7.37]
[1757012061145,121.64,203.2,203.1,7.37]
[1757012063444,68.9043,203.15,203.09,7.37]
[1757012063644,68.9086,203.13,203.06,7.37]
[1757012064249,71.96395517,203.13,203.06,7.37]
[1757012064848,71.96395517,203.13,203.07,0.03760273]
[1757012067146,75.93395517,203.13,203.07,0.03760273]
[1757012068650,125.69,203.12,203.07,7.40760273]
[1757012068847,125.69,203.12,203.08,7.37]
[1757012069049,3.97,203.11,203.07,0.03760273]
[1757012069358,68.9086,203.13,203.07,0.03760273]
[1757012069648,124.77535517,203.13,203.07,0.03760273]
[1757012069849,3.97,203.12,203.07,0.03760273]
[1757012070151,124.77535517,203.13,203.07,0.03760273]
[1757012070352,3.97,203.12,203.07,0.03760273]
[1757012070548,124.77535517,203.13,203.07,0.03760273]
[1757012071554,3.97,203.12,203.07,0.03760273]
[1757012072050,3.05535517,203.1,203.07,0.03760273]
[1757012072253,3.97,203.09,203.07,0.03760273]
[1757012072459,3.05535517,203.1,203.07,0.03760273]
[1757012072460,125.79,203.08,203.07,0.03760273]
[1757012072661,125.81,203.08,203.07,0.03760273]
[1757012075261,3.97,203.08,203.07,0.03760273]
[1757012075462,3.05535517,203.1,203.07,0.03760273]
[1757012075663,69.32,203.13,203.07,0.03760273]
[1757012075863,3.97,203.12,203.07,0.03760273]
[1757012076260,69.32,203.13,203.07,0.03760273]
[1757012076463,3.05535517,203.12,203.07,0.03760273]
[1757012076862,3.97,203.11,203.07,0.03760273]
[1757012077165,3.05535517,203.12,203.07,0.03760273]
[1757012077567,69.32,203.13,203.07,0.03760273]
[1757012077568,5.92631697,203.09,203.07,0.03760273]
[1757012077961,3.97,203.09,203.07,0.03760273]
[1757012078867,3.97,203.08,203.07,0.03760273]
[1757012079459,125.97,203.08,203.07,0.03760273]
[1757012079662,141.8014,203.05,202.98,7.37]
[1757012079863,1.95631697,203.03,202.97,7.37]
[1757012080066,70.89951697,203.03,202.97,7.37]
[1757012080474,4.4326,203.0,202.96,1.95631697]
[1757012080762,4.46555252,203.0,202.97,7.37]
[1757012080961,4.46555252,203.0,202.96,1.95631697]
[1757012081168,4.46555252,203.0,202.94,7.37]
[1757012081358,4.433,202.99,202.94,7.37]
[1757012081661,4.433,202.99,202.97,7.37]
[1757012082070,4.433,202.99,202.96,1.95631697]
[1757012082272,4.433,202.99,202.97,1.95631697]
[1757012082566,4.433,202.99,202.98,7.37]
[1757012083665,4.4333,202.97,202.96,9.32631697]
[1757012084264,4.4333,202.97,202.96,7.37]
[1757012085663,4.4333,202.97,202.96,7.87]
[1757012085866,4.4333,202.97,202.96,9.82631697]
[1757012086065,4.46575252,203.0,202.97,7.37]
[1757012086268,4.46575252,203.0,202.96,1.95631697]
[1757012086464,0.03295252,203.0,202.97,9.32631697]
[1757012086865,0.03295252,203.0,202.98,7.37]
[1757012087877,4.433,202.99,202.98,7.37]
[1757012089076,68.9561,202.99,202.91,7.55]
[1757012089275,72.8761,202.99,202.95,7.55]
[1757012089474,68.9561,202.99,202.95,7.55]
[1757012089680,72.8831,202.97,202.93,7.55]
[1757012090071,4.4344,202.93,202.88,7.55]
[1757012090278,3.92,202.96,202.88,7.55]
[1757012090473,70.91941697,202.97,202.92,1.95631697]
[1757012090474,68.9631,202.97,202.92,1.95631697]
[1757012090674,0.03120438,202.94,202.93,1.95631697]
[1757012090882,0.03120438,202.94,202.93,9.50631697]
[1757012091181,0.03120438,202.94,202.93,7.55]
[1757012095479,0.03120438,202.94,202.86,4.14253509]
[1757012095785,0.03120438,202.94,202.91,7.55]
[1757012095974,0.03120438,202.94,202.9,1.95631697]
[1757012096481,0.03120438,202.94,202.85,443.04253509]
[1757012096482,0.03120438,202.94,202.91,7.55]
[1757012097186,3.95120438,202.94,202.91,7.55]
[1757012097984,0.03120438,202.94,202.91,7.55]
[1757012098678,0.03120438,202.94,202.9,1.95631697]
[1757012099082,0.03120438,202.94,202.91,1.95631697]
[1757012099383,0.03120438,202.94,202.92,7.55]
[1757012100378,0.03120438,202.94,202.91,1.95631697]
[1757012100587,3.95120438,202.94,202.9,7.55]
[1757012100781,1.98752135,202.94,202.9,7.55]
[1757012100976,1.98752135,202.94,202.87,1.95631697]
[1757012100977,3.92,202.93,202.87,7.55]
[1757012101287,3.92,202.91,202.87,7.55]
[1757012101585,3.92,202.91,202.86,7.55]
[1757012101786,1.95631697,202.92,202.86,7.55]
[1757012101978,3.95120438,202.94,202.87,1.95631697]
[1757012102176,5.90752135,202.94,202.87,1.95631697]
[1757012102683,0.03120438,202.94,202.89,1.95631697]
[1757012102987,0.03120438,202.94,202.86,7.55]
[1757012103183,0.03120438,202.94,202.93,1.95631697]
[1757012103383,0.03120438,202.94,202.93,9.50631697]
[1757012103584,0.03120438,202.94,202.93,7.55]
[1757012103789,0.03120438,202.94,202.93,9.50631697]
[1757012104391,4.4332,202.98,202.94,7.55]
[1757012104586,4.4332,202.98,202.92,7.55]
[1757012104786,74.81741697,203.04,202.97,9.50631697]
[1757012105086,74.81741697,203.04,202.98,1.95631697]
[1757012105886,4.4327,203.0,202.98,9.50631697]
[1757012106588,4.4327,203.0,202.98,1.95631697]
[1757012106788,4.4323,203.02,202.98,1.95631697]
[1757012107093,4.4323,203.02,203.01,7.55]
[1757012107494,68.9321,203.07,203.02,7.55]
[1757012107495,4.4318,203.04,203.02,7.55]
[1757012108288,68.9321,203.07,202.95,7.55]
[1757012108289,72.8858,203.05,202.95,7.55]
[1757012108492,3.95,203.01,202.97,1.95631697]
[1757012108686,3.95,203.01,202.97,9.50631697]
[1757012108886,68.9459,203.02,202.98,7.55]
[1757012110195,72.8959,203.02,202.98,7.55]
[1757012110594,3.95,203.01,202.97,1.95631697]
[1757012111093,3.95,203.01,202.97,9.50631697]
[1757012111589,72.8858,203.05,202.98,7.55]
[1757012111794,72.8858,203.05,203.01,1.95631697]
[1757012112096,3.95,203.05,203.01,1.95631697]
[1757012112396,3.95,203.05,203.01,9.50631697]
[1757012112597,5.90631697,203.06,203.0,1.95631697]
[1757012112896,5.90631697,203.06,202.98,1.95631697]
[1757012113489,1.95631697,203.04,202.96,7.55]
[1757012113695,3.95,203.03,202.96,7.55]
[1757012113898,3.95,203.0,202.96,7.55]
[1757012115197,3.95,203.06,202.97,1.95631697]
[1757012115397,1.95631697,203.04,202.97,1.95631697]
[1757012115596,3.95,203.03,202.97,1.95631697]
[1757012116195,168.35841697,203.07,202.99,1.95631697]
[1757012116394,74.83841697,203.07,202.99,1.95631697]
[1757012116897,74.83841697,203.07,202.98,7.55]
[1757012117197,4.4328,203.0,202.99,1.95631697]
[1757012117593,4.4328,203.0,202.98,9.50631697]
[1757012119304,4.4328,203.0,202.99,7.61]
[1757012119998,68.9321,203.07,202.99,7.61]
[1757012120303,72.9021,203.07,203.02,9.56631697]
[1757012120797,3.97,203.07,203.02,1.95631697]
[1757012120993,3.97,203.07,203.03,7.61]
[1757012122104,3.97,203.13,203.04,1.95631697]
[1757012122306,3.97,203.13,203.02,7.61]
[1757012122307,3.97,203.13,203.05,1.95631697]
[1757012122506,1.95631697,203.12,203.05,9.56631697]
[1757012123000,1.95631697,203.12,203.06,0.03165205]
[1757012123400,3.97,203.13,203.06,0.03165205]
[1757012123602,5.92631697,203.13,203.06,0.03165205]
[1757012123793,3.97,203.13,203.06,0.03165205]
[1757012124810,72.879,203.13,203.07,1.95631697]
[1757012125005,72.879,203.13,203.09,9.56631697]
[1757012125303,68.8976,203.17,203.11,1.95631697]
[1757012125504,68.8976,203.17,203.07,7.61]
[1757012125505,4.4299,203.13,203.07,7.61]
[1757012125801,70.86471697,203.13,203.06,1.95631697]
[1757012126004,3.97,203.14,203.08,1.95631697]
[1757012129008,5.92631697,203.14,203.06,7.61]
[1757012129211,5.92631697,203.14,203.07,1.95631697]
[1757012129406,1.95631697,203.12,203.06,7.61]
[1757012129605,1.95631697,203.12,202.98,4.4328]
[1757012129606,3.97,203.11,203.04,1.95631697]
[1757012132514,123.44,203.14,203.08,1.95631697]
[1757012133413,8.4005,203.1,203.09,0.0345125]
[1757012133909,3.97,203.1,203.04,1.95631697]
[1757012134312,3.97,203.1,203.05,9.56631697]
[1757012134711,3.97,203.1,202.97,362.77782788]
[1757012134712,68.9092,203.13,203.08,1.95631697]
[1757012135015,3.97,203.13,203.09,7.61]
[1757012135407,3.97,203.13,203.08,1.95631697]
[1757012135610,3.97,203.13,203.09,7.61]
[1757012136618,68.902,203.15,203.09,7.61]
[1757012136818,68.902,203.15,203.09,7.64112654]
[1757012137114,3.97,203.17,203.1,1.95631697]
[1757012138621,5.92631697,203.17,203.1,1.95631697]
[1757012138913,5.92631697,203.17,203.09,7.64112654]
[1757012139117,3.97,203.16,203.09,9.59744351]
[1757012139518,3.97,203.16,203.09,7.64112654]
[1757012140319,3.97,203.16,203.09,10.6961622]
[1757012142112,68.8907,203.19,203.1,7.61]
[1757012142514,68.8916,203.18,203.1,7.61]
[1757012144916,4.4297,203.14,203.1,7.61]
[1757012145118,3.97,203.2,203.1,7.61]
[1757012145517,4.4286,203.19,203.1,7.61]
[1757012145718,3.97,203.2,203.12,3.05503566]
[1757012146021,4.429,203.17,203.12,3.05503566]
[1757012146222,3.97,203.2,203.13,7.61]
[1757012147224,68.8784,203.22,203.13,7.61]
[1757012147821,4.4288,203.18,203.13,7.61]
[1757012148019,4.4288,203.18,203.13,7.45]
[1757012148320,3.97,203.24,203.16,7.45]
[1757012148523,3.97,203.24,203.15,3.05503566]
[1757012148524,3.97,203.24,203.18,3.05503566]
[1757012148719,3.97,203.24,203.18,10.50503566]
[1757012148920,3.95,203.27,203.18,10.50503566]
[1757012149820,3.95,203.27,203.2,0.03134867]
[1757012150022,0.03335778,203.25,203.21,7.45]
[1757012152933,0.03335778,203.25,203.21,3.05503566]
[1757012153827,0.03335778,203.25,203.22,7.45]
[1757012154024,0.03335778,203.25,203.21,3.05503566]
[1757012154229,0.03335778,203.25,203.24,3.05503566]
[1757012154424,0.03335778,203.25,203.24,10.50503566]
[1757012155023,0.03335778,203.25,203.24,7.45]
[1757012156930,3.98335778,203.25,203.21,7.45]
[1757012157125,3.98335778,203.25,203.2,0.03134867]
[1757012157325,3.98335778,203.25,203.21,7.45]
[1757012158026,3.95,203.24,203.2,7.48134867]
[1757012158531,0.03335778,203.25,203.2,0.03134867]
[1757012158733,0.03335778,203.25,203.21,7.45]
[1757012159130,3.98335778,203.25,203.21,7.45]
[1757012160935,3.98335778,203.25,203.2,0.03134867]
[1757012160936,0.03335778,203.25,203.2,0.03134867]
[1757012161130,0.03335778,203.25,203.21,7.45]
[1757012161336,0.03335778,203.25,203.2,0.03134867]
[1757012161637,0.03335778,203.25,203.23,7.45]
[1757012162934,0.03335778,203.25,203.23,3.05503566]
[1757012163136,0.03335778,203.25,203.24,7.45]
[1757012164236,0.03335778,203.25,203.2,0.03134867]
[1757012164541,3.05503566,203.24,203.2,0.03134867]
[1757012164734,3.95,203.23,203.2,0.03134867]
[1757012165136,3.05503566,203.24,203.2,0.03134867]
[1757012165639,3.95,203.23,203.2,0.03134867]
[1757012165840,3.05503566,203.24,203.2,0.03134867]
[1757012166436,3.95,203.23,203.2,0.03134867]
[1757012166637,0.03335778,203.25,203.2,0.03134867]
[1757012166834,3.95,203.23,203.2,0.03134867]
[1757012167038,7.00503566,203.21,203.2,0.03134867]
[1757012167237,7.00503566,203.18,203.04,4.11782788]
[1757012167438,3.95,203.17,203.05,7.45]
[1757012167642,3.95,203.14,203.05,7.45]
[1757012168438,0.03296219,203.12,203.05,7.45]
[1757012168845,3.95,203.11,203.01,10.50503566]
[1757012169147,3.95,203.11,203.01,7.45]
[1757012170944,3.05503566,203.09,203.01,7.45]
[1757012171443,0.03354974,203.07,203.01,7.45]
[1757012171842,4.4314,203.06,202.99,320.03503566]
[1757012172041,4.4314,203.06,203.0,7.45]
[1757012172241,0.03354974,203.07,203.0,7.45]
[1757012172642,0.03354974,203.07,203.03,7.45]
[1757012172842,0.03354974,203.07,203.02,3.05503566]
[1757012173447,0.03354974,203.07,203.03,7.45]
[1757012173641,0.03354974,203.07,203.02,3.05503566]
[1757012173849,0.03354974,203.07,203.03,7.45]
[1757012174052,0.03354974,203.07,203.05,3.05503566]
[1757012174243,0.03354974,203.07,203.06,7.45]
[1757012174954,4.4295,203.15,203.06,7.95]
[1757012175153,4.4295,203.15,203.06,7.45]
[1757012175349,3.95,203.16,203.06,7.45]
[1757012175553,4.4298,203.14,203.06,7.45]
[1757012176154,4.4298,203.14,203.08,0.03105998]
[1757012177249,4.4298,203.14,203.09,7.45]
[1757012177854,4.4298,203.14,203.09,7.33]
[1757012178050,4.4298,203.14,203.08,3.08609564]
[1757012178250,4.4298,203.14,203.09,7.33]
[1757012178453,4.4298,203.14,203.08,3.08609564]
[1757012178856,4.4291,203.17,203.12,7.33]
[1757012179050,4.4291,203.17,203.14,7.33]
[1757012179355,4.4291,203.17,203.13,3.08934396]
[1757012179551,4.4285,203.19,203.13,3.08934396]
[1757012179756,4.4285,203.19,203.13,10.41934396]
[1757012180955,4.4289,203.17,203.14,7.33]
[1757012181546,4.4293,203.16,203.13,0.0343083]
[1757012181746,4.4293,203.16,203.13,7.3643083]
[1757012182354,8.4287,203.19,203.13,7.3643083]
[1757012182552,4.0,203.19,203.13,7.3643083]
[1757012183661,4.4289,203.17,203.13,7.3643083]
[1757012185063,4.4289,203.17,203.14,7.33]
[1757012189073,4.0,203.21,203.13,0.0343083]
[1757012191173,4.0,203.21,203.14,7.33]
[1757012197979,4.4293,203.16,203.14,7.33]
[1757012198477,4.4288,203.18,203.13,0.0343083]
[1757012198678,4.4288,203.18,203.14,7.33]
[1757012199380,4.0,203.21,203.14,7.33]
[1757012200980,4.4292,203.16,203.14,7.33]
[1757012201181,4.4292,203.16,203.13,3.08934396]
[1757012201478,4.4288,203.18,203.15,1.95373464]
[1757012201678,4.4288,203.18,203.17,9.28373464]
[1757012204577,4.4283,203.2,203.17,1.95373464]
[1757012204782,4.4283,203.2,203.18,7.33]
[1757012204981,4.4283,203.2,203.17,1.95373464]
[1757012205176,4.4283,203.2,203.18,7.33]
[1757012205779,5.95373464,203.25,203.19,1.95373464]
[1757012205780,4.0,203.25,203.19,1.95373464]
[1757012206084,4.0,203.25,203.21,9.28373464]
[1757012207581,4.0,203.25,203.22,8.09]
[1757012207782,74.77883464,203.29,203.21,1.95373464]
[1757012208378,74.77883464,203.29,203.23,0.03644554]
[1757012208578,5.92373464,203.29,203.23,0.03644554]
[1757012208781,3.97,203.29,203.23,1.99018018]
[1757012208988,1.95373464,203.28,203.23,0.03644554]
[1757012209285,3.97,203.27,203.23,0.03644554]
[1757012209480,3.97,203.27,203.23,8.12644554]
[1757012209881,1.95373464,203.28,203.23,8.12644554]
[1757012210082,3.97,203.27,203.23,8.12644554]
[1757012212078,3.97,203.27,203.24,8.09]
[1757012212783,3.97,203.29,203.23,1.99018018]
[1757012215487,5.92373464,203.29,203.23,1.99018018]
[1757012218486,3.97,203.29,203.23,1.99018018]
[1757012218684,5.92373464,203.29,203.23,1.99018018]
[1757012219187,3.97,203.29,203.23,1.99018018]
[1757012219390,3.97,203.29,203.23,10.08018018]
[1757012219688,68.8483,203.31,203.25,1.95373464]
[1757012219983,385.9421,203.33,203.27,10.04373464]
[1757012219984,72.8121,203.33,203.27,10.04373464]
[1757012220384,0.03421097,203.32,203.28,8.09]
[1757012220591,3.97,203.31,203.28,8.12143825]
[1757012221990,0.03421097,203.32,203.29,8.09]
[1757012222190,0.03421097,203.32,203.3,8.09]
[1757012223182,0.03421097,203.32,203.29,1.95373464]
[1757012223588,0.03421097,203.32,203.3,8.09]
[1757012227785,4.00421097,203.32,203.28,8.12143825]
[1757012227990,0.03421097,203.32,203.29,8.09]
[1757012228795,4.00421097,203.32,203.29,8.09]
[1757012229096,5.92373464,203.31,203.28,0.03143825]
[1757012229395,3.97,203.3,203.28,0.03143825]
[1757012229594,3.97,203.31,203.28,8.12143825]
[1757012230193,0.03421097,203.32,203.29,8.09]
[1757012230394,4.00421097,203.32,203.29,8.09]
[1757012230894,0.03421097,203.32,203.28,0.03143825]
[1757012231097,0.03421097,203.32,203.29,8.09]
[1757012231988,4.00421097,203.32,203.29,8.09]
[1757012232194,4.00421097,203.32,203.28,0.03143825]
[1757012232195,3.97,203.31,203.28,0.03143825]
[1757012233292,3.97,203.31,203.28,8.12143825]
[1757012234599,0.03421097,203.32,203.28,0.03143825]
[1757012234800,3.97,203.31,203.28,0.03143825]
[1757012236393,3.97,203.31,203.28,8.12143825]
[1757012243808,3.97,203.3,203.28,0.03143825]
[1757012244107,5.92373464,203.29,203.28,0.03143825]
[1757012245105,3.97,203.3,203.28,0.03143825]
[1757012245305,1.95373464,203.31,203.28,0.03143825]
[1757012245902,3.97,203.3,203.28,0.03143825]
[1757012246508,1.95373464,203.31,203.28,0.03143825]
[1757012246717,3.97,203.3,203.28,0.03143825]
[1757012247601,1.95373464,203.31,203.28,0.03143825]
[1757012247801,3.97,203.3,203.28,0.03143825]
[1757012248403,1.95373464,203.31,203.28,0.03143825]
[1757012248600,3.97,203.3,203.28,0.03143825]
[1757012249710,1.95373464,203.31,203.28,0.03143825]
[1757012249909,3.97,203.3,203.28,0.03143825]
[1757012250102,1.95373464,203.31,203.28,0.03143825]
[1757012250609,3.97,203.3,203.28,0.03143825]
[1757012250914,5.92373464,203.29,203.28,0.03143825]
[1757012253609,3.97,203.3,203.28,0.03143825]
[1757012253912,5.92373464,203.29,203.28,0.03143825]
[1757012256010,1.95373464,203.31,203.28,0.03143825]
[1757012256214,3.97,203.3,203.28,0.03143825]
[1757012257313,1.95373464,203.31,203.28,0.03143825]
[1757012257813,3.97,203.3,203.28,0.03143825]
[1757012259116,4.00421097,203.32,203.29,7.99]
[1757012259416,0.03421097,203.32,203.28,1.98517289]
[1757012259607,0.03421097,203.32,203.31,7.99]
[1757012267626,44.3,203.42,203.31,7.99]
[1757012267627,4.0,203.43,203.31,8.49]
[1757012267827,4.0,203.43,203.34,7.52]
[1757012268830,4.0,203.43,203.36,7.55240292]
[1757012272426,316.98,203.44,203.37,3.04885766]
[1757012272633,4.02,203.46,203.38,7.52]
[1757012273034,122.0,203.47,203.38,7.52]
[1757012273235,4.02,203.45,203.38,7.52]
[1757012273433,3.04885766,203.46,203.35,7.52]
[1757012273633,4.02,203.45,203.39,0.03412276]
[1757012273829,122.0,203.44,203.39,7.55412276]
[1757012274035,4.02,203.43,203.39,7.55412276]
[1757012274335,122.0,203.44,203.39,7.55412276]
[1757012274631,122.0,203.44,203.39,0.03412276]
[1757012274826,4.02,203.43,203.39,0.03412276]
[1757012275030,122.0,203.44,203.39,0.03412276]
[1757012275431,4.02,203.43,203.39,0.03412276]
[1757012275832,122.0,203.44,203.39,0.03412276]
[1757012276139,4.02,203.43,203.39,0.03412276]
[1757012276638,122.0,203.44,203.39,0.03412276]
[1757012276939,4.02,203.43,203.39,0.03412276]
[1757012277940,122.0,203.44,203.39,0.03412276]
[1757012278436,4.02,203.43,203.39,0.03412276]
[1757012279336,122.0,203.44,203.39,0.03412276]
[1757012279539,4.02,203.43,203.39,0.03412276]
[1757012279935,122.0,203.44,203.39,0.03412276]
[1757012280639,4.02,203.43,203.39,0.03412276]
[1757012281039,4.02,203.45,203.39,0.03412276]
[1757012281237,3.04885766,203.46,203.39,0.03412276]
[1757012281442,121.98,203.44,203.39,0.03412276]
[1757012281638,4.02,203.43,203.39,0.03412276]
[1757012281944,3.04885766,203.4,203.39,0.03412276]
[1757012282147,7.06885766,203.4,203.39,0.03412276]
[1757012282742,3.54885766,203.4,203.24,7.52]
[1757012282938,4.02,203.35,203.25,7.52]
[1757012286343,3.04885766,203.36,203.25,7.52]
[1757012286545,4.02,203.35,203.25,7.52]
[1757012290440,14.78,203.37,203.21,11.65266862]
[1757012290646,7.06885766,203.29,203.21,7.52]
[1757012291143,7.06885766,203.26,203.16,7.52]
[1757012294542,4.02,203.22,203.16,7.52]
[1757012297040,3.04885766,203.3,203.16,7.52]
[1757012297041,3.04885766,203.27,203.16,7.52]
[1757012297237,7.06885766,203.27,203.16,7.52]
[1757012298251,7.09885766,203.24,203.16,7.52]
[1757012299752,7.09885766,203.24,203.18,0.03155054]
[1757012304354,4.05,203.24,203.18,0.03155054]
[1757012304551,4.05,203.24,203.18,7.76155054]
[1757012307357,33.34885766,203.28,203.18,7.76155054]
[1757012307751,4.03,203.27,203.18,7.73]
[1757012307952,4.03,203.27,203.21,0.03175997]
[1757012312355,14.78,203.38,203.22,7.73]
[1757012312561,4.03,203.33,203.22,7.73]
[1757012312859,3.04885766,203.34,203.25,0.03560307]
[1757012313057,4.03,203.33,203.25,0.03560307]
[1757012313851,4.03,203.3,203.25,0.03560307]
[1757012314054,4.03,203.27,203.25,0.03560307]
[1757012314960,3.04885766,203.28,203.25,0.03560307]
[1757012315357,4.03,203.27,203.25,0.03560307]
[1757012316154,3.04885766,203.28,203.25,0.03560307]
[1757012316457,4.03,203.27,203.25,0.03560307]
[1757012317157,3.04885766,203.28,203.25,0.03560307]
[1757012317455,0.5,203.27,203.14,7.73]
[1757012317659,3.99,203.2,203.14,7.73]
[1757012318658,0.03703983,203.19,203.14,7.73]
[1757012318962,3.99,203.18,203.14,7.73]
[1757012321960,3.99,203.18,203.08,7.73]
[1757012323665,6.79703983,203.19,203.07,7.73]
[1757012323666,1.95574926,203.13,203.07,7.73]
[1757012324365,0.03603855,203.12,203.07,7.73]
[1757012324965,0.03603855,203.12,203.06,1.95574926]
[1757012325262,0.03603855,203.12,203.07,7.73]
[1757012325462,1.95574926,203.08,203.0,7.73]
[1757012326065,0.03622497,203.06,203.0,7.73]
[1757012328063,0.03622497,203.06,203.05,1.95574926]
[1757012328259,0.03622497,203.06,203.05,9.98574926]
[1757012328564,0.03622497,203.06,203.05,8.03]
[1757012330961,1.95574926,203.12,203.05,8.03]
[1757012331268,1.95574926,203.12,203.07,8.03]
[1757012331564,1.95574926,203.14,203.06,1.95574926]
[1757012331764,1.95574926,203.14,203.07,8.03]
[1757012332164,1.95574926,203.14,203.08,0.03607328]
[1757012332562,4.03,203.16,203.08,0.03607328]
[1757012332766,1.95574926,203.14,203.08,0.03607328]
[1757012333365,5.98574926,203.16,203.09,8.03]
[1757012333565,4.4302,203.12,203.09,8.03]
[1757012334872,4.4304,203.11,203.09,8.03]
[1757012339976,4.4306,203.1,203.08,0.03607328]
[1757012340175,8.4606,203.1,203.08,0.03607328]
[1757012340373,4.4306,203.1,203.08,8.06607328]
[1757012340677,4.4306,203.1,203.09,8.03]
[1757012343379,5.98574926,203.14,203.09,8.03]
[1757012343573,5.98574926,203.14,203.08,1.99182254]
[1757012343772,5.98574926,203.14,203.08,10.02182254]
[1757012345073,5.98574926,203.14,203.08,8.06607328]
[1757012347675,4.4304,203.11,203.09,8.03]
[1757012347870,4.03,203.18,203.09,9.98574926]
[1757012348070,4.03,203.18,203.12,1.95574926]
[1757012348269,4.03,203.18,203.13,8.03]
[1757012348673,4.03,203.18,203.13,0.03320666]
[1757012348874,4.4292,203.16,203.13,0.03320666]
[1757012349072,4.4292,203.16,203.14,8.03]
[1757012349272,1.95574926,203.2,203.14,9.98574926]
[1757012349977,4.03,203.19,203.14,8.03]
[1757012350178,5.98574926,203.2,203.14,8.03]
[1757012350874,1.95574926,203.17,203.13,0.03320666]
[1757012351274,4.03,203.16,203.13,0.03320666]
[1757012351978,1.95574926,203.19,203.13,8.06320666]
[1757012352174,5.98574926,203.19,203.13,8.06320666]
[1757012352675,4.03,203.19,203.13,8.06320666]
[1757012352869,1.95574926,203.2,203.13,8.06320666]
[1757012352870,124.01574926,203.2,203.13,10.01895592]
[1757012353468,4.03,203.17,203.13,8.06320666]
[1757012353674,4.03,203.15,203.13,0.03320666]
[1757012353882,5.98574926,203.14,203.13,0.03320666]
[1757012357986,128.04574926,203.14,203.13,0.03320666]
[1757012359784,4.4295,203.15,203.13,0.03320666]
[1757012360580,4.4295,203.15,203.13,7.37320666]
[1757012360786,4.4295,203.15,203.14,7.34]
[1757012361081,4.4295,203.15,203.13,0.03320666]
[1757012361281,4.429,203.17,203.13,1.98895592]
[1757012361478,122.06,203.2,203.13,0.03320666]
[1757012361675,1.95574926,203.19,203.13,0.03320666]
[1757012362585,4.4295,203.15,203.13,7.37320666]
[1757012364489,4.4295,203.15,203.13,0.03320666]
[1757012364779,8.4295,203.15,203.13,0.03320666]
[1757012367185,4.4295,203.15,203.13,0.03320666]
[1757012367786,8.4295,203.15,203.13,0.03320666]
[1757012368881,4.0,203.14,203.13,0.03320666]
[1757012370986,5.95574926,203.14,203.13,0.03320666]
[1757012371384,4.4295,203.15,203.13,0.03320666]
[1757012371584,4.4295,203.15,203.13,7.37320666]
[1757012372382,4.4295,203.15,203.14,7.34]
[1757012373185,4.4295,203.15,203.13,7.37320666]
[1757012375289,4.4295,203.15,203.14,7.34]
[1757012378787,4.429,203.17,203.15,7.34]
[1757012378985,4.429,203.17,203.14,1.95574926]
[1757012379983,4.429,203.17,203.15,7.34]
[1757012380293,4.0,203.21,203.15,7.34]
[1757012381892,4.0,203.21,203.16,1.95574926]